[Event "RUS-chT Premier 2019"]
[Site "Sochi"]
[Date "2019.05.02"]
[Round "2.6"]
[White "Murzin, Volodar"]
[Black "Golikov, Daniil"]
[Result "1-0"]
[ECO "A37"]
[WhiteElo "2407"]
[BlackElo "2271"]
[Annotator "NA"]
[PlyCount "131"]
[EventDate "2019.05.01"]
[EventType "team-tourn"]
[EventCountry "RUS"]
[SourceTitle "playchess.com"]
[Source "ChessBase"]
[SourceQuality "1"]
[TimeControl "40/5400+30:1800+30"]

1. Nf3 {[%emt 0:00:00]} c5 {[%emt 0:00:00]} 2. c4 {[%emt 0:00:00]} Nc6 {[%emt 0:01:48]} 3. g3 {[%emt 0:00:20]} g6 {[%emt 0:02:01]} 4. Bg2 {[%emt 0:00:52]} Bg7 {[%emt 0:00:05]} 5. Nc3 {[%emt 0:00:21]} e5 {[%emt 0:00:51]} 6. O-O {[%emt 0:02:11]} Nge7 {[%emt 0:00:10]} 7. d3 {[%emt 0:01:39]} O-O {[%emt 0:00:38]} 8. Rb1 {[%emt 0:04:20]} d6 {[%emt 0:10:42]} 9. a3 {[%emt 0:00:31]} Rb8 {[%emt 0:02:10]} 10. b4 {[%emt 0:03:19]} b6 {[%emt 0:00:09]} 11. e3 {[%emt 0:12:00]} f5 {[%emt 0:08:02]} 12. b5 {[%emt 0:04:40]} Na5 {[%emt 0:12:00]} 13. Bd2 {[%emt 0:08:42]} h6 {[%emt 0:04:42]} 14. Nd5 {[%emt 0:08:14]} e4 {[%emt 0:13:16]} 15. Ne1 {[%emt 0:04:21]} Nxd5 {[%emt 0:00:32]} 16. cxd5 {[%emt 0:00:18]} exd3 {[%emt 0:00:14]} 17. Nxd3 {[%emt 0:04:24]} Nc4 {[%emt 0:01:40]} 18. Bc1 {[%emt 0:00:43]} Ne5 {[%emt 0:11:49]} 19. Bb2 {[%emt 0:10:17]} Nxd3 {[%emt 0:01:04]} 20. Qxd3 {[%emt 0:00:19]} Bxb2 {[%emt 0:00:09]} 21. Rxb2 {[%emt 0:00:01]} Qf6 {[%emt 0:00:29]} 22. Re2 {[%emt 0:04:01]} a6 {[%emt 0:09:54]} 23. Rfe1 {[%emt 0:01:41]} axb5 {[%emt 0:02:17]} 24. Qxb5 {[%emt 0:01:41]} Ra8 {[%emt 0:02:58]} 25. Qxb6 {[%emt 0:02:43]} Rxa3 {[%emt 0:00:02]} 26. Rc2 {[%emt 0:02:30]} Ba6 {[%emt 0:00:56]} 27. Bf1 {[%emt 0:00:41]} Bxf1 {[%emt 0:00:14]} 28. Rxf1 {[%emt 0:00:04]} Rd3 {[%emt 0:01:48]} 29. Ra2 {[%emt 0:01:04]} Rxd5 {[%emt 0:02:12]} 30. Ra7 {[%emt 0:01:22]} Re5 {[%emt 0:05:48]} 31. Rd1 {[%emt 0:00:54]} d5 {[%emt 0:03:59]} 32. Qxc5 {[%emt 0:00:29]} Rf7 {[%emt 0:00:12]} 33. Rxd5 {[%emt 0:03:03]} Rxa7 {[%emt 0:00:57]} 34. Rxe5 {[%emt 0:00:10]} Rf7 {[%emt 0:00:15]} 35. Qd5 {[%emt 0:01:05]} Kh7 {[%emt 0:00:41]} 36. Re8 {[%emt 0:02:03]} Qg7 {[%emt 0:00:12]} 37. h4 {[%emt 0:01:42]} h5 {[%emt 0:00:00]} 38. Kg2 {[%emt 0:00:19]} Ra7 {[%emt 0:00:00]} 39. Kf3 {[%emt 0:00:00]} Qb7 {[%emt 0:00:00]} 40. Qxb7+ {[%emt 0:00:00]} Rxb7 {[%emt 0:00:00]} 41. Kf4 {[%emt 0:05:22]} Kh6 {[%emt 0:16:06]} 42. Rh8+ {[%emt 0:04:32]} Kg7 {[%emt 0:00:16]} 43. Rd8 {[%emt 0:00:08]} Rb2 {[%emt 0:10:27]} 44. Kg5 {[%emt 0:01:36]} Kf7 {[%emt 0:00:01]} 45. Rd7+ {[%emt 0:06:55]} Ke6 {[%emt 0:00:01]} 46. Rg7 {[%emt 0:00:15]} Rxf2 {[%emt 0:00:05]} 47. Rxg6+ {[%emt 0:00:06]} Ke7 {[%emt 0:06:49]} 48. Kxh5 {[%emt 0:01:03]} Rf3 {[%emt 0:00:09]} 49. Rg5 {[%emt 0:06:16]} Kf6 {[%emt 0:01:48]} 50. g4 {[%emt 0:01:16]} fxg4 {[%emt 0:00:40]} 51. e4 {[%emt 0:00:38]} g3 {[%emt 0:00:06]} 52. Kg4 {[%emt 0:00:04]} Ra3 {[%emt 0:02:21]} 53. Kf4 {[%emt 0:00:13]} g2 {[%emt 0:00:52]} 54. Rxg2 {[%emt 0:00:29]} Rh3 {[%emt 0:00:13]} 55. e5+ {[%emt 0:01:25]} Kf7 {[%emt 0:00:57]} 56. Rg4 {[%emt 0:01:11]} Rh1 {[%emt 0:00:43]} 57. Kf5 {[%emt 0:01:37]} Rf1+ {[%emt 0:00:57]} 58. Rf4 {[%emt 0:00:05]} Rg1 {[%emt 0:00:19]} 59. h5 {[%emt 0:00:40]} Rh1 {[%emt 0:00:38]} 60. Kg5+ {[%emt 0:00:27]} Kg7 {[%emt 0:00:21]} 61. e6 {[%emt 0:00:40]} Re1 {[%emt 0:00:43]} 62. h6+ {[%emt 0:01:10]} Kg8 {[%emt 0:00:29]} 63. Kf6 {[%emt 0:00:19]} Kf8 {[%emt 0:00:45]} 64. h7 {[%emt 0:01:00]} Rh1 {[%emt 0:00:32]} 65. Kg6+ {[%emt 0:00:47]} Ke7 {[%emt 0:00:06]} 66. Rg4 {[%emt 0:00:12]} 1-0

[Event "RUS-chT Premier 2019"]
[Site "Sochi"]
[Date "2019.05.02"]
[Round "2.9"]
[White "Rakhmanov, Aleksandr"]
[Black "Timofeev, Artyom"]
[Result "1/2-1/2"]
[ECO "D43"]
[WhiteElo "2629"]
[BlackElo "2602"]
[Annotator "RC"]
[PlyCount "113"]
[EventDate "2019.05.01"]
[EventType "team-tourn"]
[EventCountry "RUS"]
[SourceTitle "playchess.com"]
[Source "ChessBase"]
[SourceQuality "1"]
[TimeControl "40/5400+30:1800+30"]

1. d4 {[%emt 0:00:00]} Nf6 {[%emt 0:00:00]} 2. Nf3 {[%emt 0:00:24]} e6 {[%emt 0:01:27]} 3. c4 {[%emt 0:02:50]} d5 {[%emt 0:02:04]} 4. Nc3 {[%emt 0:02:24]} c6 {[%emt 0:08:53]} 5. g3 {[%emt 0:01:24]} dxc4 {[%emt 0:05:52]} 6. Ne5 {[%emt 0:01:02]} Nbd7 {[%emt 0:01:39]} 7. Nxc4 {[%emt 0:01:06]} b5 {[%emt 0:01:36]} 8. Ne5 {[%emt 0:11:28]} Nxe5 {[%emt 0:03:07]} 9. dxe5 {[%emt 0:01:15]} Qxd1+ {[%emt 0:00:18]} 10. Kxd1 {[%emt 0:00:25]} Nd5 {[%emt 0:03:41]} 11. Ne4 {[%emt 0:03:17]} f5 {[%emt 0:10:13]} 12. Nd2 {[%emt 0:14:18]} Bb7 {[%emt 0:06:05]} 13. e4 {[%emt 0:02:22]} Nb6 {[%emt 0:00:08]} 14. Bd3 {[%emt 0:15:37]} O-O-O {[%emt 0:09:10]} 15. Ke2 {[%emt 0:00:48]} fxe4 {[%emt 0:20:39]} 16. Bxe4 {[%emt 0:08:29]} Be7 {[%emt 0:03:38]} 17. h4 {[%emt 0:06:16]} h6 {[%emt 0:02:45]} 18. f4 {[%emt 0:02:29]} Rd4 {[%emt 0:03:20]} 19. Bg6 {[%emt 0:00:39]} c5 {[%emt 0:01:28]} 20. Nf3 {[%emt 0:00:52]} Rd7 {[%emt 0:01:18]} 21. h5 {[%emt 0:01:41]} Rhd8 {[%emt 0:00:55]} 22. f5 {[%emt 0:10:01]} Bd5 {[%emt 0:05:20]} 23. g4 {[%emt 0:05:15]} Nc4 {[%emt 0:01:04]} 24. fxe6 {[%emt 0:03:03]} Rc7 {[%emt 0:03:58]} 25. Re1 {[%emt 0:01:14]} Bxe6 {[%emt 0:00:40]} 26. b3 {[%emt 0:01:32]} Nb6 {[%emt 0:00:12]} 27. g5 {[%emt 0:02:38]} Bf8 {[%emt 0:01:36]} 28. Bd2 {[%emt 0:00:35]} c4 {[%emt 0:00:21]} 29. Ba5 {[%emt 0:00:24]} Be7 {[%emt 0:02:10]} 30. gxh6 {[%emt 0:00:07]} gxh6 {[%emt 0:00:05]} 31. Red1 {[%emt 0:00:46]} Rcd7 {[%emt 0:00:56]} 32. Rxd7 {[%emt 0:00:22]} Rxd7 {[%emt 0:00:08]} 33. Bxb6 {[%emt 0:00:38]} axb6 {[%emt 0:00:06]} 34. Rd1 {[%emt 0:00:14]} Rxd1 {[%emt 0:01:25]} 35. Kxd1 {[%emt 0:00:02]} cxb3 {[%emt 0:00:07]} 36. axb3 {[%emt 0:00:04]} Bxb3+ {[%emt 0:00:05]} 37. Kd2 {[%emt 0:00:13]} b4 {[%emt 0:00:45]} 38. Nd4 {[%emt 0:00:17]} Bd5 {[%emt 0:00:28]} 39. Kd3 {[%emt 0:00:58]} Kd7 {[%emt 0:00:35]} 40. e6+ {[%emt 0:00:00]} Kd6 {[%emt 0:00:00]} 41. Nf5+ {[%emt 0:01:42]} Kxe6 {[%emt 0:01:07]} 42. Nxh6 {[%emt 0:00:13]} Kf6 {[%emt 0:04:25]} 43. Ng4+ {[%emt 0:02:45]} Kg5 {[%emt 0:00:41]} 44. Nf2 {[%emt 0:00:07]} Bf8 {[%emt 0:02:28]} 45. Ne4+ {[%emt 0:08:26]} Kf4 {[%emt 0:00:45]} 46. Nd2 {[%emt 0:00:41]} b3 {[%emt 0:04:37]} 47. Kc3 {[%emt 0:02:01]} Bg7+ {[%emt 0:00:08]} 48. Kb4 {[%emt 0:01:24]} b2 {[%emt 0:00:09]} 49. Nc4 {[%emt 0:01:51]} Bd4 {[%emt 0:02:12]} 50. Kb5 {[%emt 0:01:53]} Be6 {[%emt 0:05:08]} 51. Nxb2 {[%emt 0:00:40]} Bd7+ {[%emt 0:00:07]} 52. Ka6 {[%emt 0:00:10]} Bc8+ {[%emt 0:01:30]} 53. Kb5 {[%emt 0:00:28]} Bxb2 {[%emt 0:00:14]} 54. Kxb6 {[%emt 0:00:05]} Bg7 {[%emt 0:00:10]} 55. Be8 {[%emt 0:00:56]} Ke5 {[%emt 0:00:17]} 56. Kc7 {[%emt 0:00:06]} Ba6 {[%emt 0:00:21]} 57. Bc6 {[%emt 0:00:19]} 1/2-1/2

[Event "RUS-chT Premier 2019"]
[Site "Sochi"]
[Date "2019.05.02"]
[Round "2.11"]
[White "Romanov, Evgeny"]
[Black "Makhmutov, Rail"]
[Result "1/2-1/2"]
[ECO "A06"]
[WhiteElo "2573"]
[BlackElo "2390"]
[Annotator "ChessBase"]
[PlyCount "99"]
[EventDate "2019.05.01"]
[EventType "team-tourn"]
[EventCountry "RUS"]
[SourceTitle "playchess.com"]
[Source "ChessBase"]
[SourceQuality "1"]
[TimeControl "40/5400+30:1800+30"]

1. Nf3 {[%emt 0:00:00]} d5 {[%emt 0:00:00]} 2. b3 {[%emt 0:00:06]} Bg4 {[%emt 0:00:59]} 3. e3 {[%emt 0:00:47]} Nd7 {[%emt 0:04:09]} 4. h3 {[%emt 0:00:45]} Bh5 {[%emt 0:00:25]} 5. Bb2 {[%emt 0:00:07]} e6 {[%emt 0:01:26]} 6. d3 {[%emt 0:00:27]} h6 {[%emt 0:08:17]} 7. Nbd2 {[%emt 0:03:27]} Ngf6 {[%emt 0:02:14]} 8. g4 {[%emt 0:00:44]} Bg6 {[%emt 0:00:08]} 9. Rg1 {[%emt 0:00:29]} Bd6 {[%emt 0:04:39]} 10. h4 {[%emt 0:02:52]} Qe7 {[%emt 0:08:06]} 11. g5 {[%emt 0:03:14]} hxg5 {[%emt 0:00:09]} 12. hxg5 {[%emt 0:00:39]} Nh5 {[%emt 0:01:17]} 13. Nh4 {[%emt 0:04:07]} e5 {[%emt 0:23:05]} 14. Qg4 {[%emt 0:04:13]} O-O-O {[%emt 0:02:04]} 15. O-O-O {[%emt 0:01:23]} Kb8 {[%emt 0:07:56]} 16. Kb1 {[%emt 0:02:35]} Nf4 {[%emt 0:02:47]} 17. Re1 {[%emt 0:11:38]} Ne6 {[%emt 0:03:55]} 18. Nxg6 {[%emt 0:09:58]} fxg6 {[%emt 0:00:03]} 19. Bg2 {[%emt 0:00:40]} c6 {[%emt 0:00:59]} 20. f4 {[%emt 0:01:05]} Nc7 {[%emt 0:06:10]} 21. Nf3 {[%emt 0:04:49]} Rhf8 {[%emt 0:05:35]} 22. d4 {[%emt 0:20:12]} e4 {[%emt 0:08:13]} 23. Nh4 {[%emt 0:01:35]} Qf7 {[%emt 0:00:19]} 24. Ref1 {[%emt 0:01:15]} Nb6 {[%emt 0:02:57]} 25. Bh3 {[%emt 0:03:33]} Nc8 {[%emt 0:00:46]} 26. f5 {[%emt 0:01:09]} gxf5 {[%emt 0:00:03]} 27. Nxf5 {[%emt 0:00:29]} Qd7 {[%emt 0:00:36]} 28. a4 {[%emt 0:03:34]} g6 {[%emt 0:02:59]} 29. Nxd6 {[%emt 0:00:35]} Qxd6 {[%emt 0:00:19]} 30. Ka2 {[%emt 0:01:51]} Rxf1 {[%emt 0:01:03]} 31. Rxf1 {[%emt 0:00:08]} Qh2 {[%emt 0:00:41]} 32. Bg2 {[%emt 0:02:27]} Qh7 {[%emt 0:01:21]} 33. Ba3 {[%emt 0:01:07]} Ne7 {[%emt 0:00:17]} 34. Rf6 {[%emt 0:07:28]} Nf5 {[%emt 0:00:08]} 35. Qf4 {[%emt 0:00:06]} Kc8 {[%emt 0:00:52]} 36. Bf1 {[%emt 0:05:59]} Ne8 {[%emt 0:00:49]} 37. Rf8 {[%emt 0:00:40]} Nc7 {[%emt 0:00:15]} 38. Rf6 {[%emt 0:01:13]} Ne8 {[%emt 0:00:07]} 39. Rf8 {[%emt 0:01:09]} Nc7 {[%emt 0:00:11]} 40. Rxd8+ {[%emt 0:00:00]} Kxd8 {[%emt 0:00:00]} 41. Bc5 {[%emt 0:08:02]} Qh4 {[%emt 0:10:41]} 42. Qe5 {[%emt 0:06:55]} Qf2 {[%emt 0:04:12]} 43. Qf6+ {[%emt 0:01:48]} Kc8 {[%emt 0:01:14]} 44. Qf8+ {[%emt 0:00:44]} Kd7 {[%emt 0:00:06]} 45. Qf7+ {[%emt 0:00:07]} Kc8 {[%emt 0:00:28]} 46. Kb2 {[%emt 0:03:43]} Qh2 {[%emt 0:09:55]} 47. Qf8+ {[%emt 0:11:46]} Kd7 {[%emt 0:00:07]} 48. Qf7+ {[%emt 0:00:06]} Kc8 {[%emt 0:00:04]} 49. Qf8+ {[%emt 0:01:00]} Kd7 {[%emt 0:00:02]} 50. Qf7+ {[%emt 0:00:09]} 1/2-1/2

[Event "RUS-chT Premier 2019"]
[Site "Sochi"]
[Date "2019.05.02"]
[Round "2.12"]
[White "Toropov, Pavel"]
[Black "Rozum, Ivan"]
[Result "1-0"]
[ECO "B06"]
[WhiteElo "2327"]
[BlackElo "2568"]
[Annotator "RC"]
[PlyCount "131"]
[EventDate "2019.05.01"]
[EventType "team-tourn"]
[EventCountry "RUS"]
[SourceTitle "playchess.com"]
[Source "ChessBase"]
[SourceQuality "1"]
[TimeControl "40/5400+30:1800+30"]

1. e4 {[%emt 0:00:00]} g6 {[%emt 0:00:00]} 2. d4 {[%emt 0:00:00]} Bg7 {[%emt 0:00:00]} 3. Nc3 {[%emt 0:00:00]} d6 {[%emt 0:00:00]} 4. h3 {[%emt 0:00:00]} Nf6 {[%emt 0:01:16]} 5. g4 {[%emt 0:00:00]} O-O {[%emt 0:03:43]} 6. Bg2 {[%emt 0:00:19]} e5 {[%emt 0:01:02]} 7. Nge2 {[%emt 0:00:12]} Nc6 {[%emt 0:04:53]} 8. Be3 {[%emt 0:00:08]} a6 {[%emt 0:01:37]} 9. O-O {[%emt 0:03:41]} Bxg4 {[%emt 0:08:57]} 10. hxg4 {[%emt 0:35:40]} Nxg4 {[%emt 0:00:09]} 11. Bh3 {[%emt 0:01:49]} Nxe3 {[%emt 0:06:59]} 12. fxe3 {[%emt 0:00:04]} Qg5+ {[%emt 0:00:54]} 13. Kf2 {[%emt 0:18:59]} Qh4+ {[%emt 0:24:08]} 14. Kg2 {[%emt 0:00:51]} Qg5+ {[%emt 0:02:34]} 15. Kf2 {[%emt 0:00:22]} Bh6 {[%emt 0:03:26]} 16. Qd3 {[%emt 0:12:29]} Nb4 {[%emt 0:19:37]} 17. Qd2 {[%emt 0:01:28]} Qh4+ {[%emt 0:01:14]} 18. Kg2 {[%emt 0:00:28]} Qg5+ {[%emt 0:03:20]} 19. Kf2 {[%emt 0:00:16]} Qh4+ {[%emt 0:05:31]} 20. Kg2 {[%emt 0:00:15]} Qg5+ {[%emt 0:03:57]} 21. Kf2 {[%emt 0:14:41]} exd4 {[%emt 0:01:18]} 22. Nxd4 {[%emt 0:00:21]} Qh4+ {[%emt 0:00:06]} 23. Kg2 {[%emt 0:00:11]} Qg5+ {[%emt 0:00:04]} 24. Kf2 {[%emt 0:00:54]} Qh4+ {[%emt 0:01:30]} 25. Kg2 {[%emt 0:00:05]} Qg5+ {[%emt 0:00:27]} 26. Kf2 {[%emt 0:03:30]} Qh4+ {[%emt 0:05:00]} 27. Kg2 {[%emt 0:00:01]} Qg5+ {[%emt 0:00:08]} 28. Kf2 {[%emt 0:00:50]} Qh4+ {[%emt 0:00:57]} 29. Kg2 {[%emt 0:00:04]} Qg5+ {[%emt 0:00:07]} 30. Kf2 {[%emt 0:01:49]} Rae8 {[%emt 0:00:32]} 31. Nf3 {[%emt 0:02:11]} Qc5 {[%emt 0:00:24]} 32. Rae1 {[%emt 0:00:45]} Bg7 {[%emt 0:00:23]} 33. Nd4 {[%emt 0:01:45]} Nc6 {[%emt 0:00:22]} 34. Nxc6 {[%emt 0:01:53]} bxc6 {[%emt 0:00:05]} 35. Bg2 {[%emt 0:00:31]} Rb8 {[%emt 0:00:33]} 36. Rb1 {[%emt 0:00:36]} Qg5 {[%emt 0:01:09]} 37. Kg1 {[%emt 0:00:40]} Be5 {[%emt 0:00:40]} 38. Rf3 {[%emt 0:00:24]} h5 {[%emt 0:01:02]} 39. b3 {[%emt 0:00:30]} Rbe8 {[%emt 0:00:16]} 40. Ne2 {[%emt 0:00:00]} Re7 {[%emt 0:00:00]} 41. Rbf1 {[%emt 0:02:19]} Bg7 {[%emt 0:05:45]} 42. Qd3 {[%emt 0:01:43]} Qc5 {[%emt 0:05:38]} 43. Nd4 {[%emt 0:03:55]} d5 {[%emt 0:06:25]} 44. b4 {[%emt 0:14:57]} Qb6 {[%emt 0:03:11]} 45. Rf4 {[%emt 0:01:50]} dxe4 {[%emt 0:04:47]} 46. Rxe4 {[%emt 0:01:32]} Rxe4 {[%emt 0:02:04]} 47. Bxe4 {[%emt 0:02:38]} c5 {[%emt 0:02:11]} 48. bxc5 {[%emt 0:02:21]} Qxc5 {[%emt 0:00:01]} 49. Nf3 {[%emt 0:02:09]} Re8 {[%emt 0:01:47]} 50. Kf2 {[%emt 0:01:09]} c6 {[%emt 0:00:52]} 51. Re1 {[%emt 0:01:23]} f5 {[%emt 0:01:07]} 52. Qb3+ {[%emt 0:00:06]} Kh8 {[%emt 0:00:02]} 53. Bd3 {[%emt 0:00:10]} Bc3 {[%emt 0:03:38]} 54. Re2 {[%emt 0:00:20]} f4 {[%emt 0:00:31]} 55. Qf7 {[%emt 0:00:37]} fxe3+ {[%emt 0:00:24]} 56. Kg2 {[%emt 0:00:42]} Rf8 {[%emt 0:00:10]} 57. Qc4 {[%emt 0:00:45]} Bb4 {[%emt 0:00:50]} 58. Qxc5 {[%emt 0:00:41]} Bxc5 {[%emt 0:00:01]} 59. Ne5 {[%emt 0:00:39]} Re8 {[%emt 0:01:14]} 60. Nxg6+ {[%emt 0:00:15]} Kg7 {[%emt 0:00:00]} 61. Nf4 {[%emt 0:00:16]} Kf6 {[%emt 0:00:57]} 62. Kf3 {[%emt 0:00:20]} Ke5 {[%emt 0:00:26]} 63. Rh2 {[%emt 0:00:14]} Rf8 {[%emt 0:00:32]} 64. Rxh5+ {[%emt 0:00:08]} Kd4 {[%emt 0:00:24]} 65. c3+ {[%emt 0:00:29]} Kxc3 {[%emt 0:00:06]} 66. Rxc5+ {[%emt 0:00:01]} 1-0

[Event "RUS-chT Premier 2019"]
[Site "Sochi"]
[Date "2019.05.02"]
[Round "2.28"]
[White "Lintchevski, Daniil"]
[Black "Antipov, Mikhail Al."]
[Result "1-0"]
[ECO "D15"]
[WhiteElo "2525"]
[BlackElo "2595"]
[Annotator "RC"]
[PlyCount "95"]
[EventDate "2019.05.01"]
[EventType "team-tourn"]
[EventCountry "RUS"]
[SourceTitle "playchess.com"]
[Source "ChessBase"]
[SourceQuality "1"]
[TimeControl "40/5400+30:1800+30"]

1. Nf3 {[%emt 0:00:25]} d5 {[%emt 0:00:00]} 2. d4 {[%emt 0:00:39]} Nf6 {[%emt 0:00:00]} 3. c4 {[%emt 0:00:07]} c6 {[%emt 0:00:00]} 4. Nc3 {[%emt 0:01:36]} a6 {[%emt 0:00:03]} 5. a4 {[%emt 0:02:02]} e6 {[%emt 0:01:44]} 6. g3 {[%emt 0:00:59]} dxc4 {[%emt 0:01:29]} 7. Bg2 {[%emt 0:00:40]} c5 {[%emt 0:01:22]} 8. O-O {[%emt 0:00:07]} cxd4 {[%emt 0:05:43]} 9. Nxd4 {[%emt 0:03:07]} e5 {[%emt 0:03:09]} 10. Nc2 {[%emt 0:06:20]} Nc6 {[%emt 0:01:50]} 11. Qxd8+ {[%emt 0:04:32]} Nxd8 {[%emt 0:00:05]} 12. Bg5 {[%emt 0:01:36]} Be6 {[%emt 0:05:11]} 13. Bxf6 {[%emt 0:05:22]} gxf6 {[%emt 0:00:06]} 14. Nd5 {[%emt 0:05:27]} Bxd5 {[%emt 0:28:24]} 15. Bxd5 {[%emt 0:00:52]} Rc8 {[%emt 0:00:05]} 16. Ne3 {[%emt 0:02:07]} c3 {[%emt 0:00:04]} 17. Rac1 {[%emt 0:05:46]} Bh6 {[%emt 0:23:55]} 18. Rxc3 {[%emt 0:02:10]} Rxc3 {[%emt 0:00:04]} 19. bxc3 {[%emt 0:00:06]} Bxe3 {[%emt 0:00:05]} 20. fxe3 {[%emt 0:00:05]} Ke7 {[%emt 0:00:05]} 21. Rb1 {[%emt 0:00:46]} Kd6 {[%emt 0:00:31]} 22. Bxb7 {[%emt 0:03:58]} Nxb7 {[%emt 0:00:04]} 23. Rxb7 {[%emt 0:00:07]} Ke6 {[%emt 0:00:03]} 24. Rb6+ {[%emt 0:02:43]} Kf5 {[%emt 0:05:30]} 25. Rc6 {[%emt 0:06:45]} h5 {[%emt 0:00:35]} 26. a5 {[%emt 0:01:53]} h4 {[%emt 0:02:47]} 27. gxh4 {[%emt 0:05:53]} Rxh4 {[%emt 0:01:59]} 28. Rxa6 {[%emt 0:00:18]} Rc4 {[%emt 0:00:26]} 29. Ra8 {[%emt 0:04:38]} Rxc3 {[%emt 0:04:32]} 30. a6 {[%emt 0:01:26]} Ke4 {[%emt 0:00:17]} 31. Kf2 {[%emt 0:11:42]} Rc6 {[%emt 0:02:32]} 32. h4 {[%emt 0:02:06]} f5 {[%emt 0:00:16]} 33. h5 {[%emt 0:00:05]} f4 {[%emt 0:01:29]} 34. exf4 {[%emt 0:03:28]} Kxf4 {[%emt 0:00:06]} 35. e3+ {[%emt 0:05:07]} Ke4 {[%emt 0:10:47]} 36. Kg3 {[%emt 0:01:41]} f5 {[%emt 0:01:50]} 37. Kh4 {[%emt 0:01:02]} Kxe3 {[%emt 0:00:05]} 38. Kg5 {[%emt 0:00:11]} f4 {[%emt 0:00:24]} 39. h6 {[%emt 0:01:22]} Rc7 {[%emt 0:00:04]} 40. Kg6 {[%emt 0:00:00]} Rc6+ {[%emt 0:00:00]} 41. Kg7 {[%emt 0:02:09]} f3 {[%emt 0:00:54]} 42. h7 {[%emt 0:02:59]} f2 {[%emt 0:00:11]} 43. Rf8 {[%emt 0:00:17]} Rc7+ {[%emt 0:02:49]} 44. Kg8 {[%emt 0:03:11]} Rc8 {[%emt 0:02:22]} 45. Rxc8 {[%emt 0:00:06]} f1=Q {[%emt 0:00:04]} 46. h8=Q {[%emt 0:00:05]} Qg2+ {[%emt 0:00:11]} 47. Qg7 {[%emt 0:00:53]} Qa2+ {[%emt 0:00:09]} 48. Kh8 {[%emt 0:00:29]} 1-0

[Event "RUS-chT Premier 2019"]
[Site "Sochi"]
[Date "2019.05.02"]
[Round "2.29"]
[White "Lomasov, Semyon"]
[Black "Levin, Evgeny A."]
[Result "1-0"]
[ECO "C11"]
[WhiteElo "2541"]
[BlackElo "2516"]
[Annotator "RC"]
[PlyCount "93"]
[EventDate "2019.05.01"]
[EventType "team-tourn"]
[EventCountry "RUS"]
[SourceTitle "playchess.com"]
[Source "ChessBase"]
[SourceQuality "1"]
[TimeControl "40/5400+30:1800+30"]

1. e4 {[%emt 0:00:00]} e6 {[%emt 0:00:00]} 2. d4 {[%emt 0:00:00]} d5 {[%emt 0:00:00]} 3. Nc3 {[%emt 0:00:00]} Nf6 {[%emt 0:00:00]} 4. e5 {[%emt 0:00:00]} Nfd7 {[%emt 0:00:01]} 5. f4 {[%emt 0:00:00]} c5 {[%emt 0:00:04]} 6. Nf3 {[%emt 0:00:00]} Nc6 {[%emt 0:00:05]} 7. Be3 {[%emt 0:00:01]} a6 {[%emt 0:00:33]} 8. Ne2 {[%emt 0:00:32]} b5 {[%emt 0:10:01]} 9. c3 {[%emt 0:00:46]} b4 {[%emt 0:10:37]} 10. cxb4 {[%emt 0:01:39]} cxd4 {[%emt 0:04:48]} 11. Nexd4 {[%emt 0:00:44]} Bxb4+ {[%emt 0:00:30]} 12. Kf2 {[%emt 0:00:12]} Nxd4 {[%emt 0:09:41]} 13. Bxd4 {[%emt 0:04:03]} O-O {[%emt 0:29:03]} 14. Rc1 {[%emt 0:17:03]} f6 {[%emt 0:03:38]} 15. h4 {[%emt 0:01:28]} fxe5 {[%emt 0:13:11]} 16. fxe5 {[%emt 0:00:07]} Qe7 {[%emt 0:02:56]} 17. a3 {[%emt 0:13:03]} Bc5 {[%emt 0:00:28]} 18. Qd2 {[%emt 0:24:12]} a5 {[%emt 0:05:09]} 19. Qe3 {[%emt 0:01:38]} Bxd4 {[%emt 0:01:11]} 20. Qxd4 {[%emt 0:02:46]} Nb8 {[%emt 0:01:44]} 21. Kg3 {[%emt 0:16:53]} Ba6 {[%emt 0:00:53]} 22. Bxa6 {[%emt 0:00:18]} Rxa6 {[%emt 0:00:40]} 23. Rhf1 {[%emt 0:04:28]} Rc6 {[%emt 0:02:24]} 24. Qa4 {[%emt 0:04:57]} Qb7 {[%emt 0:01:36]} 25. Qg4 {[%emt 0:03:31]} Qe7 {[%emt 0:02:21]} 26. Nd4 {[%emt 0:00:59]} Rxc1 {[%emt 0:00:15]} 27. Rxc1 {[%emt 0:00:05]} Re8 {[%emt 0:00:22]} 28. h5 {[%emt 0:02:28]} h6 {[%emt 0:01:16]} 29. Qg6 {[%emt 0:00:35]} Qg5+ {[%emt 0:00:29]} 30. Qxg5 {[%emt 0:00:06]} hxg5 {[%emt 0:00:04]} 31. Rc7 {[%emt 0:00:30]} Na6 {[%emt 0:00:57]} 32. Rc6 {[%emt 0:00:40]} Nb8 {[%emt 0:00:03]} 33. Rc7 {[%emt 0:00:14]} Na6 {[%emt 0:00:04]} 34. Rc6 {[%emt 0:00:14]} Nb8 {[%emt 0:00:03]} 35. Rd6 {[%emt 0:00:03]} Kf7 {[%emt 0:00:20]} 36. Nf3 {[%emt 0:00:05]} Rc8 {[%emt 0:01:18]} 37. Nxg5+ {[%emt 0:00:02]} Kg8 {[%emt 0:00:05]} 38. Nxe6 {[%emt 0:00:25]} Nc6 {[%emt 0:00:45]} 39. Rxd5 {[%emt 0:00:24]} Re8 {[%emt 0:00:14]} 40. Ng5 {[%emt 0:00:00]} Rxe5 {[%emt 0:00:00]} 41. Rxe5 {[%emt 0:04:17]} Nxe5 {[%emt 0:01:39]} 42. b4 {[%emt 0:00:05]} a4 {[%emt 0:01:37]} 43. b5 {[%emt 0:00:47]} Nc4 {[%emt 0:00:05]} 44. Kf4 {[%emt 0:02:07]} Kf8 {[%emt 0:03:05]} 45. Ne6+ {[%emt 0:00:21]} Kf7 {[%emt 0:00:58]} 46. Nc5 {[%emt 0:00:11]} Nb6 {[%emt 0:03:39]} 47. Kg5 {[%emt 0:00:18]} 1-0